[Event "Titled Tuesday Blitz February 22 Late 2022"]
[White "Hjartarson, Johann"]
[Black "Golubenko, Valentina"]
[WhiteFideId "2300044"]
[BlackFideId "4501993"]
[WhiteElo "2484"]
[BlackElo "2164"]
[Result "1-0"]
[Round "08"]
[TimeControl "180+1"]
[Date "2022.02.23"]
[WhiteClock "0:00:50"]
[BlackClock "0:00:01"]

1. c4 {[%clk 0:03:00]}  g6 {[%clk 0:02:58]} 2. g3 {[%clk 0:03:00]}  Bg7 {[%clk 0:02:59]} 3. Bg2 {[%clk 0:03:00]}  c5 {[%clk 0:02:59]} 4. Nc3 {[%clk 0:02:59]}  Nc6 {[%clk 0:02:59]} 5. a3 {[%clk 0:02:59]}  e6 {[%clk 0:03:00]} 6. Rb1 {[%clk 0:02:59]}  Nge7 {[%clk 0:03:00]} 7. b4 {[%clk 0:02:56]}  cxb4 {[%clk 0:02:59]} 8. axb4 {[%clk 0:02:56]}  O-O {[%clk 0:02:59]} 9. Nf3 {[%clk 0:02:51]}  d5 {[%clk 0:02:59]} 10. b5 {[%clk 0:02:46]}  Na5 {[%clk 0:02:56]} 11. cxd5 {[%clk 0:02:45]}  exd5 {[%clk 0:02:55]} 12. O-O {[%clk 0:02:43]}  Bf5 {[%clk 0:02:52]} 13. Rb4 {[%clk 0:02:38]}  d4 {[%clk 0:02:31]} 14. Na4 {[%clk 0:02:30]}  Rc8 {[%clk 0:02:31]} 15. d3 {[%clk 0:02:17]}  Nd5 {[%clk 0:02:26]} 16. Rxd4 {[%clk 0:02:05]}  Bxd4 {[%clk 0:02:21]} 17. Nxd4 {[%clk 0:02:05]}  Nc3 {[%clk 0:02:14]} 18. Nxc3 {[%clk 0:02:04]}  Qxd4 {[%clk 0:02:14]} 19. Nd5 {[%clk 0:02:03]}  Rfe8 {[%clk 0:01:09]} 20. Be3 {[%clk 0:01:56]}  Qe5 {[%clk 0:00:35]} 21. Qa4 {[%clk 0:01:53]}  b6 {[%clk 0:00:14]} 22. Bd4 {[%clk 0:01:45]}  Qd6 {[%clk 0:00:14]} 23. Ba1 {[%clk 0:01:35]}  Re6 {[%clk 0:00:12]} 24. Qd4 {[%clk 0:01:32]}  f6 {[%clk 0:00:10]} 25. Nxf6+ {[%clk 0:01:32]}  Rxf6 {[%clk 0:00:09]} 26. Qxf6 {[%clk 0:01:31]}  Qxf6 {[%clk 0:00:09]} 27. Bxf6 {[%clk 0:01:31]}  Rc2 {[%clk 0:00:09]} 28. Bf3 {[%clk 0:01:24]}  Be6 {[%clk 0:00:08]} 29. d4 {[%clk 0:01:21]}  Kf7 {[%clk 0:00:08]} 30. Bg5 {[%clk 0:01:19]}  Nb3 {[%clk 0:00:08]} 31. d5 {[%clk 0:01:18]}  Bd7 {[%clk 0:00:08]} 32. Be3 {[%clk 0:01:14]}  Bxb5 {[%clk 0:00:07]} 33. Rb1 {[%clk 0:01:13]}  Bc4 {[%clk 0:00:08]} 34. d6 {[%clk 0:01:06]}  Ke6 {[%clk 0:00:07]} 35. Bf4 {[%clk 0:01:05]}  Kd7 {[%clk 0:00:07]} 36. Bg4+ {[%clk 0:01:04]}  Be6 {[%clk 0:00:05]} 37. Bxe6+ {[%clk 0:01:02]}  Kxe6 {[%clk 0:00:06]} 38. Rxb3 {[%clk 0:01:02]}  g5 {[%clk 0:00:06]} 39. Re3+ {[%clk 0:00:57]}  Kd7 {[%clk 0:00:05]} 40. Re7+ {[%clk 0:00:56]}  Kd8 {[%clk 0:00:04]} 41. Bxg5 {[%clk 0:00:56]}  a5 {[%clk 0:00:03]} 42. Rxh7+ {[%clk 0:00:55]}  Kc8 {[%clk 0:00:02]} 43. d7+ {[%clk 0:00:55]}  Kb7 {[%clk 0:00:03]} 44. d8=Q+ {[%clk 0:00:55]}  Ka6 {[%clk 0:00:03]} 45. Qa8+ {[%clk 0:00:53]}  Kb5 {[%clk 0:00:03]} 46. Qd5+ {[%clk 0:00:53]}  Kb4 {[%clk 0:00:03]} 47. Qe4+ {[%clk 0:00:52]}  Rc4 {[%clk 0:00:03]} 48. Qb1+ {[%clk 0:00:51]}  Kc5 {[%clk 0:00:02]} 49. Be3+ {[%clk 0:00:50]}  Kd5 {[%clk 0:00:01]} 50. Rh5+ {[%clk 0:00:50]} 1-0


[Site "https://www.chess.com"]

[Event "Titled Tuesday Blitz February 22 Late 2022"]
[White "Hoffmann, Asa"]
[Black "Mirzoev, Azer"]
[WhiteFideId "2001470"]
[BlackFideId "13400304"]
[WhiteElo "2117"]
[BlackElo "2525"]
[Result "0-1"]
[Round "08"]
[TimeControl "180+1"]
[Date "2022.02.23"]
[WhiteClock "0:00:02"]
[BlackClock "0:00:12"]

1. d4 {[%clk 0:02:43]}  Nf6 {[%clk 0:02:58]} 2. Bg5 {[%clk 0:02:41]}  e6 {[%clk 0:02:58]} 3. Nd2 {[%clk 0:02:41]}  h6 {[%clk 0:02:58]} 4. Bh4 {[%clk 0:02:41]}  c5 {[%clk 0:02:57]} 5. e3 {[%clk 0:02:40]}  cxd4 {[%clk 0:02:57]} 6. exd4 {[%clk 0:02:40]}  Qb6 {[%clk 0:02:58]} 7. Nc4 {[%clk 0:02:39]}  Qc7 {[%clk 0:02:53]} 8. Bg3 {[%clk 0:02:38]}  d6 {[%clk 0:02:52]} 9. Nf3 {[%clk 0:02:36]}  Be7 {[%clk 0:02:53]} 10. Bd3 {[%clk 0:02:32]}  O-O {[%clk 0:02:53]} 11. O-O {[%clk 0:02:31]}  Nbd7 {[%clk 0:02:52]} 12. c3 {[%clk 0:02:30]}  b5 {[%clk 0:02:48]} 13. Ne3 {[%clk 0:02:29]}  Rb8 {[%clk 0:02:41]} 14. Re1 {[%clk 0:02:27]}  Re8 {[%clk 0:02:40]} 15. h3 {[%clk 0:02:27]}  a6 {[%clk 0:02:39]} 16. a3 {[%clk 0:02:25]}  Bb7 {[%clk 0:02:39]} 17. Rc1 {[%clk 0:02:24]}  Rbc8 {[%clk 0:02:33]} 18. a4 {[%clk 0:02:18]}  Qb8 {[%clk 0:02:30]} 19. axb5 {[%clk 0:02:16]}  axb5 {[%clk 0:02:30]} 20. Qe2 {[%clk 0:02:15]}  Bc6 {[%clk 0:02:24]} 21. Nc2 {[%clk 0:02:10]}  Nd5 {[%clk 0:02:09]} 22. Nd2 {[%clk 0:02:02]}  N7f6 {[%clk 0:01:59]} 23. Ne4 {[%clk 0:02:00]}  Nxe4 {[%clk 0:01:53]} 24. Bxe4 {[%clk 0:01:53]}  Qb7 {[%clk 0:01:48]} 25. Qf3 {[%clk 0:01:53]}  Bf8 {[%clk 0:01:45]} 26. Qd3 {[%clk 0:01:44]}  Nf6 {[%clk 0:01:37]} 27. Bxc6 {[%clk 0:01:43]}  Qxc6 {[%clk 0:01:38]} 28. Ne3 {[%clk 0:01:42]}  d5 {[%clk 0:01:33]} 29. Ng4 {[%clk 0:01:37]}  Nxg4 {[%clk 0:01:30]} 30. hxg4 {[%clk 0:01:37]}  b4 {[%clk 0:01:31]} 31. Qe3 {[%clk 0:01:32]}  Qa4 {[%clk 0:01:21]} 32. g5 {[%clk 0:01:27]}  hxg5 {[%clk 0:01:20]} 33. Qxg5 {[%clk 0:01:26]}  Qb3 {[%clk 0:01:20]} 34. Qd2 {[%clk 0:01:22]}  Rc6 {[%clk 0:01:13]} 35. Qc2 {[%clk 0:01:07]}  Qxc2 {[%clk 0:01:12]} 36. Rxc2 {[%clk 0:01:07]}  Rec8 {[%clk 0:01:10]} 37. Rec1 {[%clk 0:01:03]}  f6 {[%clk 0:01:07]} 38. Bf4 {[%clk 0:01:00]}  Kf7 {[%clk 0:01:06]} 39. Kf1 {[%clk 0:00:52]}  g5 {[%clk 0:01:06]} 40. Be3 {[%clk 0:00:52]}  Kg6 {[%clk 0:01:05]} 41. Ke2 {[%clk 0:00:48]}  bxc3 {[%clk 0:00:59]} 42. Rxc3 {[%clk 0:00:47]}  Rxc3 {[%clk 0:00:58]} 43. Rxc3 {[%clk 0:00:46]}  Rb8 {[%clk 0:00:57]} 44. b3 {[%clk 0:00:46]}  Kf5 {[%clk 0:00:55]} 45. f3 {[%clk 0:00:45]}  g4 {[%clk 0:00:54]} 46. Kd3 {[%clk 0:00:42]}  gxf3 {[%clk 0:00:53]} 47. gxf3 {[%clk 0:00:42]}  Bb4 {[%clk 0:00:51]} 48. Rc6 {[%clk 0:00:40]}  Rh8 {[%clk 0:00:35]} 49. Rb6 {[%clk 0:00:39]}  Ba5 {[%clk 0:00:35]} 50. Ra6 {[%clk 0:00:37]}  Be1 {[%clk 0:00:33]} 51. Bd2 {[%clk 0:00:36]}  Bxd2 {[%clk 0:00:30]} 52. Kxd2 {[%clk 0:00:36]}  Rh2+ {[%clk 0:00:29]} 53. Ke3 {[%clk 0:00:34]}  Rb2 {[%clk 0:00:28]} 54. Rb6 {[%clk 0:00:34]}  Rc2 {[%clk 0:00:28]} 55. b4 {[%clk 0:00:34]}  Rc3+ {[%clk 0:00:28]} 56. Ke2 {[%clk 0:00:29]}  Rb3 {[%clk 0:00:18]} 57. b5 {[%clk 0:00:29]}  e5 {[%clk 0:00:17]} 58. dxe5 {[%clk 0:00:24]}  Kxe5 {[%clk 0:00:18]} 59. Rb8 {[%clk 0:00:20]}  f5 {[%clk 0:00:18]} 60. b6 {[%clk 0:00:20]}  Kf4 {[%clk 0:00:18]} 61. b7 {[%clk 0:00:19]}  d4 {[%clk 0:00:15]} 62. Rd8 {[%clk 0:00:15]}  Rxb7 {[%clk 0:00:14]} 63. Rxd4+ {[%clk 0:00:14]}  Kg3 {[%clk 0:00:15]} 64. Rd8 {[%clk 0:00:08]}  Re7+ {[%clk 0:00:14]} 65. Kf1 {[%clk 0:00:07]}  f4 {[%clk 0:00:14]} 66. Rd3 {[%clk 0:00:05]}  Ra7 {[%clk 0:00:13]} 67. Ke2 {[%clk 0:00:04]}  Ra2+ {[%clk 0:00:13]} 68. Kd1 {[%clk 0:00:03]}  Kf2 {[%clk 0:00:12]} 69. Rc3 {[%clk 0:00:02]}  Rb2 {[%clk 0:00:12]} 0-1


[Site "https://www.chess.com"]

[Event "Titled Tuesday Blitz February 22 Late 2022"]
[White "Iskusnyh, Sergei"]
[Black "Nesterov, Arseniy"]
[WhiteFideId "4120027"]
[BlackFideId "24198455"]
[WhiteElo "2492"]
[BlackElo "2489"]
[Result "0-1"]
[Round "08"]
[TimeControl "180+1"]
[Date "2022.02.22"]
[WhiteClock "0:00:01"]
[BlackClock "0:00:32"]

1. d4 {[%clk 0:03:00]}  d5 {[%clk 0:03:00]} 2. c4 {[%clk 0:03:00]}  e6 {[%clk 0:03:00]} 3. Nf3 {[%clk 0:03:00]}  Nf6 {[%clk 0:03:00]} 4. g3 {[%clk 0:03:00]}  a6 {[%clk 0:03:00]} 5. Nbd2 {[%clk 0:02:52]}  c5 {[%clk 0:02:59]} 6. cxd5 {[%clk 0:02:50]}  exd5 {[%clk 0:03:00]} 7. Bg2 {[%clk 0:02:49]}  Nc6 {[%clk 0:03:00]} 8. O-O {[%clk 0:02:47]}  Be6 {[%clk 0:02:55]} 9. dxc5 {[%clk 0:02:20]}  Bxc5 {[%clk 0:02:55]} 10. Nb3 {[%clk 0:02:20]}  Ba7 {[%clk 0:02:56]} 11. Nbd4 {[%clk 0:02:19]}  O-O {[%clk 0:02:56]} 12. b3 {[%clk 0:02:00]}  Ne4 {[%clk 0:02:54]} 13. Bb2 {[%clk 0:01:56]}  Rc8 {[%clk 0:02:51]} 14. Rc1 {[%clk 0:01:46]}  Re8 {[%clk 0:02:48]} 15. Qd3 {[%clk 0:01:41]}  Bd7 {[%clk 0:02:07]} 16. Nxc6 {[%clk 0:01:19]}  Bxc6 {[%clk 0:02:08]} 17. Bd4 {[%clk 0:01:17]}  Bb5 {[%clk 0:02:01]} 18. Rxc8 {[%clk 0:01:05]}  Qxc8 {[%clk 0:02:02]} 19. Qd1 {[%clk 0:01:02]}  Nc3 {[%clk 0:01:53]} 20. Bxc3 {[%clk 0:00:55]}  Qxc3 {[%clk 0:01:51]} 21. Re1 {[%clk 0:00:54]}  d4 {[%clk 0:01:26]} 22. Nd2 {[%clk 0:00:40]}  Qb2 {[%clk 0:01:17]} 23. a4 {[%clk 0:00:28]}  Bc6 {[%clk 0:01:14]} 24. Nc4 {[%clk 0:00:25]}  Qc3 {[%clk 0:01:09]} 25. Bxc6 {[%clk 0:00:24]}  bxc6 {[%clk 0:01:10]} 26. Kf1 {[%clk 0:00:19]}  Rb8 {[%clk 0:01:08]} 27. Nd2 {[%clk 0:00:14]}  Bc5 {[%clk 0:01:01]} 28. Ne4 {[%clk 0:00:12]}  Qb4 {[%clk 0:01:01]} 29. Nxc5 {[%clk 0:00:12]}  Qxc5 {[%clk 0:01:02]} 30. Qd3 {[%clk 0:00:12]}  Qd5 {[%clk 0:01:01]} 31. f3 {[%clk 0:00:08]}  Rxb3 {[%clk 0:00:59]} 32. Qxa6 {[%clk 0:00:08]}  g6 {[%clk 0:00:56]} 33. Rd1 {[%clk 0:00:08]}  c5 {[%clk 0:00:52]} 34. a5 {[%clk 0:00:06]}  Kg7 {[%clk 0:00:50]} 35. Qc8 {[%clk 0:00:05]}  Ra3 {[%clk 0:00:45]} 36. Qc7 {[%clk 0:00:04]}  Ra2 {[%clk 0:00:34]} 37. Qb6 {[%clk 0:00:02]}  Qc4 {[%clk 0:00:32]} 38. Re1 {[%clk 0:00:01]}  d3 {[%clk 0:00:32]} 0-1


[Site "https://www.chess.com"]

[Event "Titled Tuesday Blitz February 22 Late 2022"]
[White "Jaferian, Koosha"]
[Black "Ibarra Jerez, Jose Carlos"]
[WhiteFideId "12507440"]
[BlackFideId "2226332"]
[WhiteElo "2027"]
[BlackElo "2626"]
[Result "0-1"]
[Round "08"]
[TimeControl "180+1"]
[Date "2022.02.22"]
[WhiteClock "0:00:02"]
[BlackClock "0:00:18"]

1. Nf3 {[%clk 0:03:00]}  d6 {[%clk 0:02:56]} 2. d4 {[%clk 0:03:00]}  g6 {[%clk 0:02:56]} 3. b3 {[%clk 0:03:00]}  Bg7 {[%clk 0:02:56]} 4. Bb2 {[%clk 0:03:01]}  Nd7 {[%clk 0:02:53]} 5. g3 {[%clk 0:03:00]}  e5 {[%clk 0:02:54]} 6. dxe5 {[%clk 0:03:00]}  dxe5 {[%clk 0:02:53]} 7. Bg2 {[%clk 0:03:00]}  Nh6 {[%clk 0:02:53]} 8. O-O {[%clk 0:02:59]}  O-O {[%clk 0:02:54]} 9. c4 {[%clk 0:02:48]}  Nf5 {[%clk 0:02:53]} 10. Nfd2 {[%clk 0:02:28]}  Re8 {[%clk 0:02:49]} 11. Nc3 {[%clk 0:02:22]}  h5 {[%clk 0:02:31]} 12. Qc2 {[%clk 0:02:13]}  Nd4 {[%clk 0:02:30]} 13. Qd1 {[%clk 0:02:12]}  Nc5 {[%clk 0:02:30]} 14. Nde4 {[%clk 0:02:05]}  Nxe4 {[%clk 0:02:21]} 15. Nxe4 {[%clk 0:02:06]}  Bg4 {[%clk 0:02:18]} 16. Nc3 {[%clk 0:01:57]}  c6 {[%clk 0:02:10]} 17. h3 {[%clk 0:01:37]}  Bf5 {[%clk 0:01:48]} 18. e3 {[%clk 0:01:24]}  Nc2 {[%clk 0:01:48]} 19. Qxd8 {[%clk 0:01:18]}  Raxd8 {[%clk 0:01:47]} 20. Rad1 {[%clk 0:01:18]}  Nb4 {[%clk 0:01:34]} 21. e4 {[%clk 0:01:01]}  Be6 {[%clk 0:01:30]} 22. Rfe1 {[%clk 0:00:55]}  Nd3 {[%clk 0:01:28]} 23. Re2 {[%clk 0:00:55]}  Nxb2 {[%clk 0:01:24]} 24. Rxb2 {[%clk 0:00:54]}  Rxd1+ {[%clk 0:01:24]} 25. Nxd1 {[%clk 0:00:55]}  Rd8 {[%clk 0:01:25]} 26. Ne3 {[%clk 0:00:54]}  Bf8 {[%clk 0:01:25]} 27. Kf1 {[%clk 0:00:49]}  Ba3 {[%clk 0:01:22]} 28. Rc2 {[%clk 0:00:47]}  a5 {[%clk 0:01:21]} 29. Ke2 {[%clk 0:00:47]}  Bb4 {[%clk 0:01:21]} 30. f4 {[%clk 0:00:37]}  Bc5 {[%clk 0:00:43]} 31. f5 {[%clk 0:00:33]}  Bc8 {[%clk 0:00:41]} 32. g4 {[%clk 0:00:25]}  h4 {[%clk 0:00:36]} 33. Bf3 {[%clk 0:00:17]}  Kg7 {[%clk 0:00:36]} 34. Rd2 {[%clk 0:00:15]}  Rxd2+ {[%clk 0:00:33]} 35. Kxd2 {[%clk 0:00:16]}  Kf6 {[%clk 0:00:34]} 36. Ng2 {[%clk 0:00:14]}  Kg5 {[%clk 0:00:34]} 37. Ke2 {[%clk 0:00:14]}  b6 {[%clk 0:00:32]} 38. Kd3 {[%clk 0:00:12]}  Ba6 {[%clk 0:00:32]} 39. Be2 {[%clk 0:00:11]}  Bd4 {[%clk 0:00:31]} 40. Kc2 {[%clk 0:00:11]}  Bb7 {[%clk 0:00:30]} 41. Kd3 {[%clk 0:00:12]}  gxf5 {[%clk 0:00:29]} 42. gxf5 {[%clk 0:00:11]}  f6 {[%clk 0:00:27]} 43. Bf3 {[%clk 0:00:10]}  b5 {[%clk 0:00:27]} 44. Be2 {[%clk 0:00:10]}  a4 {[%clk 0:00:26]} 45. bxa4 {[%clk 0:00:08]}  bxa4 {[%clk 0:00:26]} 46. Bd1 {[%clk 0:00:08]}  a3 {[%clk 0:00:26]} 47. Ba4 {[%clk 0:00:08]}  c5 {[%clk 0:00:23]} 48. Bd7 {[%clk 0:00:08]}  Ba6 {[%clk 0:00:22]} 49. Be6 {[%clk 0:00:09]}  Bb7 {[%clk 0:00:22]} 50. Bd5 {[%clk 0:00:09]}  Bc8 {[%clk 0:00:23]} 51. Bc6 {[%clk 0:00:07]}  Bb2 {[%clk 0:00:21]} 52. Bd5 {[%clk 0:00:06]}  Bd7 {[%clk 0:00:21]} 53. Bb7 {[%clk 0:00:06]}  Ba4 {[%clk 0:00:19]} 54. Ke3 {[%clk 0:00:04]}  Bb3 {[%clk 0:00:18]} 55. Kf3 {[%clk 0:00:02]}  Bxa2 {[%clk 0:00:18]} 0-1


[Site "https://www.chess.com"]

[Event "Titled Tuesday Blitz February 22 Late 2022"]
[White "Janaszak, Dawid"]
[Black "Nasuta, Grzegorz"]
[WhiteFideId "1119206"]
[BlackFideId "1141686"]
[WhiteElo "2555"]
[BlackElo "2701"]
[Result "0-1"]
[Round "08"]
[TimeControl "180+1"]
[Date "2022.02.23"]
[WhiteClock "0:00:06"]
[BlackClock "0:00:36"]

1. e4 {[%clk 0:03:00]}  c5 {[%clk 0:02:59]} 2. Nc3 {[%clk 0:03:00]}  a6 {[%clk 0:02:59]} 3. Nge2 {[%clk 0:02:55]}  d6 {[%clk 0:02:56]} 4. g3 {[%clk 0:02:51]}  b5 {[%clk 0:02:51]} 5. Bg2 {[%clk 0:02:51]}  Bb7 {[%clk 0:02:52]} 6. d4 {[%clk 0:02:49]}  Nd7 {[%clk 0:02:48]} 7. O-O {[%clk 0:02:48]}  e6 {[%clk 0:02:47]} 8. Be3 {[%clk 0:02:35]}  Ngf6 {[%clk 0:02:38]} 9. dxc5 {[%clk 0:02:15]}  Nxc5 {[%clk 0:02:36]} 10. f3 {[%clk 0:02:02]}  Be7 {[%clk 0:02:34]} 11. b4 {[%clk 0:01:57]}  Ncd7 {[%clk 0:02:33]} 12. a4 {[%clk 0:01:57]}  bxa4 {[%clk 0:02:24]} 13. Rxa4 {[%clk 0:01:57]}  d5 {[%clk 0:02:22]} 14. exd5 {[%clk 0:01:48]}  Nxd5 {[%clk 0:02:23]} 15. Nxd5 {[%clk 0:01:46]}  Bxd5 {[%clk 0:02:24]} 16. Qa1 {[%clk 0:01:41]}  Bc4 {[%clk 0:02:19]} 17. Re1 {[%clk 0:01:16]}  O-O {[%clk 0:01:39]} 18. Bd4 {[%clk 0:01:11]}  e5 {[%clk 0:01:28]} 19. Be3 {[%clk 0:00:56]}  Nb6 {[%clk 0:01:16]} 20. Bxb6 {[%clk 0:00:45]}  Qxb6+ {[%clk 0:01:17]} 21. Kh1 {[%clk 0:00:45]}  Bb5 {[%clk 0:01:02]} 22. Ra2 {[%clk 0:00:38]}  Bxb4 {[%clk 0:00:59]} 23. c3 {[%clk 0:00:35]}  Bd6 {[%clk 0:00:55]} 24. Rd2 {[%clk 0:00:27]}  Rad8 {[%clk 0:00:51]} 25. Rb1 {[%clk 0:00:23]}  Qe3 {[%clk 0:00:49]} 26. Qa2 {[%clk 0:00:14]}  Bc7 {[%clk 0:00:45]} 27. Rxd8 {[%clk 0:00:12]}  Rxd8 {[%clk 0:00:46]} 28. Ng1 {[%clk 0:00:12]}  Rd2 {[%clk 0:00:39]} 29. Qa3 {[%clk 0:00:06]}  Qf2 {[%clk 0:00:36]} 0-1


[Site "https://www.chess.com"]

[Event "Titled Tuesday Blitz February 22 Late 2022"]
[White "Karas, Marek"]
[Black "Boros, Denes"]
[WhiteFideId "14928558"]
[BlackFideId "722340"]
[WhiteElo "2270"]
[BlackElo "2464"]
[Result "0-1"]
[Round "08"]
[TimeControl "180+1"]
[Date "2022.02.22"]
[WhiteClock "0:00:04"]
[BlackClock "0:00:10"]

1. d4 {[%clk 0:02:59]}  Nf6 {[%clk 0:03:00]} 2. Nf3 {[%clk 0:02:59]}  c5 {[%clk 0:03:00]} 3. d5 {[%clk 0:02:59]}  e6 {[%clk 0:03:01]} 4. Nc3 {[%clk 0:02:59]}  d6 {[%clk 0:02:58]} 5. e4 {[%clk 0:02:58]}  exd5 {[%clk 0:02:58]} 6. exd5 {[%clk 0:02:52]}  Be7 {[%clk 0:02:59]} 7. Bb5+ {[%clk 0:02:51]}  Bd7 {[%clk 0:02:58]} 8. Bxd7+ {[%clk 0:02:51]}  Nbxd7 {[%clk 0:02:57]} 9. O-O {[%clk 0:02:51]}  O-O {[%clk 0:02:57]} 10. h3 {[%clk 0:02:48]}  Re8 {[%clk 0:02:49]} 11. Bf4 {[%clk 0:02:47]}  Qb6 {[%clk 0:02:47]} 12. Rb1 {[%clk 0:02:43]}  Qb4 {[%clk 0:02:43]} 13. Bh2 {[%clk 0:02:41]}  a6 {[%clk 0:02:41]} 14. a3 {[%clk 0:02:36]}  Qc4 {[%clk 0:02:32]} 15. Nd2 {[%clk 0:02:22]}  Qh4 {[%clk 0:02:30]} 16. Re1 {[%clk 0:02:13]}  Bf8 {[%clk 0:02:29]} 17. Qf3 {[%clk 0:02:07]}  b5 {[%clk 0:02:13]} 18. Nce4 {[%clk 0:02:02]}  Nxe4 {[%clk 0:02:13]} 19. Rxe4 {[%clk 0:02:00]}  Rxe4 {[%clk 0:02:11]} 20. Qxe4 {[%clk 0:02:01]}  Qh5 {[%clk 0:02:07]} 21. Nf3 {[%clk 0:01:52]}  Nf6 {[%clk 0:02:06]} 22. Qd3 {[%clk 0:01:46]}  Qxd5 {[%clk 0:01:53]} 23. Qxd5 {[%clk 0:01:45]}  Nxd5 {[%clk 0:01:54]} 24. Rd1 {[%clk 0:01:45]}  Nb6 {[%clk 0:01:55]} 25. b3 {[%clk 0:01:03]}  a5 {[%clk 0:01:54]} 26. Rd2 {[%clk 0:00:55]}  a4 {[%clk 0:01:52]} 27. Bxd6 {[%clk 0:00:48]}  b4 {[%clk 0:01:44]} 28. Bxf8 {[%clk 0:00:36]}  axb3 {[%clk 0:01:14]} 29. cxb3 {[%clk 0:00:30]}  Kxf8 {[%clk 0:01:09]} 30. axb4 {[%clk 0:00:27]}  cxb4 {[%clk 0:01:10]} 31. Rd4 {[%clk 0:00:26]}  Ra1+ {[%clk 0:01:08]} 32. Kh2 {[%clk 0:00:26]}  Ra2 {[%clk 0:01:06]} 33. Kg3 {[%clk 0:00:25]}  g6 {[%clk 0:00:57]} 34. Rxb4 {[%clk 0:00:25]}  Nd5 {[%clk 0:00:56]} 35. Rb7 {[%clk 0:00:24]}  Ne7 {[%clk 0:00:44]} 36. Ne5 {[%clk 0:00:21]}  Re2 {[%clk 0:00:39]} 37. f4 {[%clk 0:00:19]}  h5 {[%clk 0:00:27]} 38. Kf3 {[%clk 0:00:19]}  Re1 {[%clk 0:00:27]} 39. g4 {[%clk 0:00:19]}  h4 {[%clk 0:00:26]} 40. Rb8+ {[%clk 0:00:19]}  Kg7 {[%clk 0:00:26]} 41. Rb7 {[%clk 0:00:19]}  Kf6 {[%clk 0:00:21]} 42. Nd7+ {[%clk 0:00:18]}  Ke6 {[%clk 0:00:20]} 43. Nc5+ {[%clk 0:00:18]}  Kd5 {[%clk 0:00:19]} 44. Nd3 {[%clk 0:00:14]}  Re6 {[%clk 0:00:16]} 45. Rd7+ {[%clk 0:00:12]}  Kc6 {[%clk 0:00:15]} 46. Rd8 {[%clk 0:00:12]}  Kc7 {[%clk 0:00:14]} 47. Rd4 {[%clk 0:00:11]}  Nc6 {[%clk 0:00:14]} 48. Rc4 {[%clk 0:00:11]}  Kb6 {[%clk 0:00:15]} 49. Nc5 {[%clk 0:00:10]}  Rd6 {[%clk 0:00:14]} 50. Rc3 {[%clk 0:00:08]}  Nb4 {[%clk 0:00:10]} 51. Ne4 {[%clk 0:00:08]}  Rd1 {[%clk 0:00:10]} 52. Ng5 {[%clk 0:00:08]}  f6 {[%clk 0:00:10]} 53. Nh7 {[%clk 0:00:08]}  Nd5 {[%clk 0:00:10]} 54. Rc4 {[%clk 0:00:07]}  f5 {[%clk 0:00:11]} 55. gxf5 {[%clk 0:00:07]}  gxf5 {[%clk 0:00:12]} 56. Ng5 {[%clk 0:00:07]}  Rd3+ {[%clk 0:00:12]} 57. Kg2 {[%clk 0:00:07]}  Ne3+ {[%clk 0:00:12]} 58. Kf2 {[%clk 0:00:06]}  Nxc4 {[%clk 0:00:13]} 59. bxc4 {[%clk 0:00:05]}  Kc5 {[%clk 0:00:13]} 60. Nf3 {[%clk 0:00:06]}  Kxc4 {[%clk 0:00:11]} 61. Nxh4 {[%clk 0:00:06]}  Rd5 {[%clk 0:00:11]} 62. Kg3 {[%clk 0:00:06]}  Kd4 {[%clk 0:00:12]} 63. Ng6 {[%clk 0:00:05]}  Ke4 {[%clk 0:00:11]} 64. Kh4 {[%clk 0:00:05]}  Rd3 {[%clk 0:00:10]} 65. Kg5 {[%clk 0:00:06]}  Rxh3 {[%clk 0:00:09]} 66. Ne7 {[%clk 0:00:06]}  Rg3+ {[%clk 0:00:10]} 67. Kf6 {[%clk 0:00:06]}  Rf3 {[%clk 0:00:10]} 68. Kg5 {[%clk 0:00:06]}  Rxf4 {[%clk 0:00:11]} 69. Nc8 {[%clk 0:00:05]}  Rg4+ {[%clk 0:00:11]} 70. Kh5 {[%clk 0:00:05]}  Kf3 {[%clk 0:00:10]} 71. Ne7 {[%clk 0:00:04]}  f4 {[%clk 0:00:11]} 72. Nc6 {[%clk 0:00:04]}  Rg1 {[%clk 0:00:11]} 73. Ne5+ {[%clk 0:00:04]}  Ke3 {[%clk 0:00:10]} 0-1


[Site "https://www.chess.com"]

[Event "Titled Tuesday Blitz February 22 Late 2022"]
[White "Kim, Sergey"]
[Black "Petrovic, Aleksa"]
[WhiteFideId "13700570"]
[BlackFideId "967629"]
[WhiteElo "2620"]
[BlackElo "2139"]
[Result "1-0"]
[Round "08"]
[TimeControl "180+1"]
[Date "2022.02.23"]
[WhiteClock "0:00:12"]
[BlackClock "0:00:01"]

1. d4 {[%clk 0:03:00]}  g6 {[%clk 0:02:56]} 2. c4 {[%clk 0:03:00]}  Nf6 {[%clk 0:02:54]} 3. Nc3 {[%clk 0:03:01]}  Bg7 {[%clk 0:02:53]} 4. e4 {[%clk 0:03:01]}  d6 {[%clk 0:02:52]} 5. Nge2 {[%clk 0:03:01]}  O-O {[%clk 0:02:52]} 6. Ng3 {[%clk 0:03:01]}  a6 {[%clk 0:02:50]} 7. a4 {[%clk 0:03:00]}  a5 {[%clk 0:02:49]} 8. Be2 {[%clk 0:03:00]}  Nc6 {[%clk 0:02:48]} 9. d5 {[%clk 0:02:59]}  Nb4 {[%clk 0:02:46]} 10. O-O {[%clk 0:02:58]}  h5 {[%clk 0:02:45]} 11. Ra3 {[%clk 0:02:44]}  Bg4 {[%clk 0:02:32]} 12. f3 {[%clk 0:02:42]}  Bc8 {[%clk 0:02:29]} 13. Bg5 {[%clk 0:02:40]}  Nd7 {[%clk 0:02:28]} 14. Qd2 {[%clk 0:02:38]}  c6 {[%clk 0:02:21]} 15. Kh1 {[%clk 0:02:36]}  Ne5 {[%clk 0:01:39]} 16. f4 {[%clk 0:02:32]}  Ng4 {[%clk 0:01:33]} 17. h3 {[%clk 0:02:33]}  f6 {[%clk 0:01:24]} 18. Bh4 {[%clk 0:02:24]}  Nh6 {[%clk 0:01:24]} 19. Nd1 {[%clk 0:01:46]}  e5 {[%clk 0:01:08]} 20. dxe6 {[%clk 0:01:39]}  Bxe6 {[%clk 0:01:07]} 21. f5 {[%clk 0:01:39]}  gxf5 {[%clk 0:01:01]} 22. exf5 {[%clk 0:01:39]}  Bf7 {[%clk 0:01:01]} 23. Bxh5 {[%clk 0:01:37]}  Bxc4 {[%clk 0:00:59]} 24. Re1 {[%clk 0:01:30]}  Bf7 {[%clk 0:00:57]} 25. Bg6 {[%clk 0:01:30]}  Re8 {[%clk 0:00:41]} 26. Rae3 {[%clk 0:01:28]}  Qd7 {[%clk 0:00:31]} 27. Bxf7+ {[%clk 0:01:19]}  Kxf7 {[%clk 0:00:27]} 28. Re6 {[%clk 0:01:17]}  Nxf5 {[%clk 0:00:21]} 29. Rxe8 {[%clk 0:01:09]}  Rxe8 {[%clk 0:00:21]} 30. Rf1 {[%clk 0:00:59]}  Nxg3+ {[%clk 0:00:20]} 31. Bxg3 {[%clk 0:00:59]}  Nd5 {[%clk 0:00:20]} 32. Qd3 {[%clk 0:00:48]}  Qe6 {[%clk 0:00:19]} 33. Qf3 {[%clk 0:00:43]}  Qe4 {[%clk 0:00:18]} 34. Qh5+ {[%clk 0:00:42]}  Qg6 {[%clk 0:00:18]} 35. Qf3 {[%clk 0:00:42]}  Kg8 {[%clk 0:00:16]} 36. Bxd6 {[%clk 0:00:38]}  Re4 {[%clk 0:00:15]} 37. Bg3 {[%clk 0:00:35]}  Rxa4 {[%clk 0:00:15]} 38. Nc3 {[%clk 0:00:34]}  Nxc3 {[%clk 0:00:14]} 39. bxc3 {[%clk 0:00:34]}  Re4 {[%clk 0:00:13]} 40. Rd1 {[%clk 0:00:33]}  Re8 {[%clk 0:00:12]} 41. Rd7 {[%clk 0:00:31]}  a4 {[%clk 0:00:06]} 42. Rxb7 {[%clk 0:00:30]}  a3 {[%clk 0:00:06]} 43. Ra7 {[%clk 0:00:29]}  Bf8 {[%clk 0:00:05]} 44. Kh2 {[%clk 0:00:27]}  Re7 {[%clk 0:00:05]} 45. Ra8 {[%clk 0:00:26]}  Rg7 {[%clk 0:00:04]} 46. Bd6 {[%clk 0:00:23]}  Rf7 {[%clk 0:00:04]} 47. Qxc6 {[%clk 0:00:21]}  Kh7 {[%clk 0:00:03]} 48. Bxf8 {[%clk 0:00:20]}  a2 {[%clk 0:00:03]} 49. Bb4 {[%clk 0:00:17]}  Rg7 {[%clk 0:00:02]} 50. Qf3 {[%clk 0:00:16]}  a1=Q {[%clk 0:00:01]} 51. Rxa1 {[%clk 0:00:15]}  Qg5 {[%clk 0:00:02]} 52. Rf1 {[%clk 0:00:14]}  Qe5+ {[%clk 0:00:01]} 53. Qf4 {[%clk 0:00:14]}  Qe2 {[%clk 0:00:01]} 54. Qf5+ {[%clk 0:00:12]}  Kh8 {[%clk 0:00:01]} 55. Qf3 {[%clk 0:00:12]}  Kh7 {[%clk 0:00:01]} 56. Qxe2 {[%clk 0:00:12]} 1-0


[Site "https://www.chess.com"]